bitfinex-derivatives/quotes_SOLF0:USTF0_20250501
["timestamp","ask_amount","ask_price","bid_price","bid_amount"]
[1746065723750,6.6981,149.29,149.25,6.6998]
[1746065725448,6.6984,149.28,149.25,6.6998]
[1746065727449,6.6982,149.29,149.25,6.6998]
[1746065729840,24.1,149.31,149.24,30.8]
[1746065730050,7.07009694,149.29,149.2,28.4157]
[1746065730242,6.7004,149.24,149.2,24.34]
[1746065730443,7.07009694,149.26,149.2,24.34]
[1746065730648,7.07009694,149.26,149.17,24.34]
[1746065730850,6.7009,149.23,149.17,24.34]
[1746065731049,7.07009694,149.26,149.17,24.34]
[1746065731249,24.34,149.27,149.17,24.34]
[1746065731447,6.6999,149.25,149.17,24.34]
[1746065731953,6.6999,149.25,149.22,6.7008]
[1746065732157,24.34,149.27,149.17,24.34]
[1746065732359,24.34,149.27,149.18,7.07009694]
[1746065733353,31.0392,149.27,149.24,6.7001]
[1746065733755,6.6995,149.26,149.21,24.34]
[1746065734259,6.6995,149.26,149.22,6.7008]
[1746065735261,31.039,149.27,149.23,6.7006]
[1746065735560,24.34,149.27,149.23,6.7006]
[1746065736154,31.0392,149.27,149.23,6.7006]
[1746065736359,24.34,149.27,149.23,6.7006]
[1746065736560,6.6997,149.26,149.23,6.7006]
[1746065738265,31.0391,149.27,149.23,6.7006]
[1746065738564,31.0391,149.27,149.21,24.34]
[1746065738764,6.6994,149.26,149.21,24.34]
[1746065739063,6.6994,149.26,149.22,6.7009]
[1746065739765,31.0391,149.27,149.23,6.7006]
[1746065739963,24.34,149.27,149.21,24.34]
[1746065740664,6.6996,149.26,149.22,6.7009]
[1746065741965,24.34,149.27,149.21,24.34]
[1746065741966,31.0391,149.27,149.23,6.7006]
[1746065742668,6.6994,149.26,149.23,6.7006]
[1746065742869,6.6994,149.26,149.22,6.7011]
[1746065743364,6.7001,149.25,149.21,31.0414]
[1746065743570,7.07009694,149.26,149.15,9.05559694]
[1746065743770,7.07009694,149.26,149.16,24.34]
[1746065743959,6.7011,149.22,149.19,6.7024]
[1746065744164,7.07009694,149.26,149.19,6.7024]
[1746065744469,6.7008,149.23,149.19,6.7024]
[1746065745567,6.7012,149.22,149.19,6.7024]
[1746065745972,7.07009694,149.26,149.19,6.7024]
[1746065746172,6.7009,149.23,149.19,6.7024]
[1746065746872,6.7012,149.22,149.19,6.7024]
[1746065747073,7.07009694,149.26,149.16,24.34]
[1746065747570,7.07009694,149.26,149.19,6.7022]
[1746065748876,6.7009,149.23,149.2,6.702]
[1746065750975,6.7004,149.24,149.2,6.702]
[1746065751177,6.7004,149.24,149.21,6.7015]
[1746065751376,24.34,149.27,149.16,31.41009694]
[1746065751671,6.6999,149.25,149.16,31.41009694]
[1746065752773,6.6999,149.25,149.21,6.7012]
[1746065752979,6.6999,149.25,149.16,31.41009694]
[1746065753579,6.6999,149.25,149.21,6.7012]
[1746065753983,6.7003,149.24,149.21,6.7012]
[1746065755472,6.7007,149.23,149.21,6.7012]
[1746065755672,6.7007,149.23,149.2,6.7018]
[1746065756180,6.7012,149.22,149.19,6.7023]
[1746065757379,7.07009694,149.26,149.16,24.34]
[1746065757782,6.7007,149.23,149.2,6.7017]
[1746065758184,7.07009694,149.26,149.16,24.34]
[1746065758380,6.7,149.25,149.22,6.7011]
[1746065759785,6.7003,149.24,149.21,6.7014]
[1746065763590,6.7,149.25,149.21,6.7014]
[1746065765992,6.7002,149.24,149.21,6.7014]
[1746065766193,6.7002,149.24,149.2,6.7018]
[1746065766394,6.7002,149.24,149.16,31.41009694]
[1746065766586,24.34,149.27,149.16,31.41009694]
[1746065767092,6.7009,149.23,149.16,31.41009694]
[1746065767692,6.7004,149.24,149.16,31.41009694]
[1746065767894,24.34,149.27,149.2,6.7018]
[1746065769200,6.701,149.23,149.2,6.7018]
[1746065769900,24.34,149.27,149.16,31.41009694]
[1746065770201,6.7005,149.24,149.21,6.7015]
[1746065771001,6.7005,149.24,149.2,6.7018]
[1746065772001,6.7005,149.24,149.21,6.7015]
[1746065772194,6.7,149.25,149.16,31.41009694]
[1746065772802,6.7003,149.24,149.21,6.7014]
[1746065773102,24.34,149.27,149.16,31.41009694]
[1746065773302,6.7005,149.24,149.21,6.7013]
[1746065773903,24.34,149.27,149.21,6.7013]
[1746065773904,6.6999,149.25,149.21,6.7013]
[1746065774504,6.6999,149.25,149.22,6.701]
[1746065775204,6.6995,149.26,149.23,6.7003]
[1746065777109,6.6983,149.29,149.2,24.28]
[1746065777307,4.0898,149.3,149.22,7.07009694]
[1746065777604,30.9774,149.31,149.28,6.6984]
[1746065779916,30.9774,149.31,149.29,6.698]
[1746065780106,24.28,149.31,149.29,6.698]
[1746065783609,6.6969,149.32,149.3,6.6975]
[1746065784010,6.6969,149.32,149.24,24.28]
[1746065785312,6.6969,149.32,149.29,6.6976]
[1746065786512,6.6971,149.31,149.27,6.6985]
[1746065786806,7.07009694,149.33,149.24,24.28]
[1746065787013,6.6968,149.32,149.29,6.698]
[1746065790715,7.07009694,149.33,149.24,24.28]
[1746065791816,6.6978,149.3,149.27,6.6985]
[1746065794917,6.6982,149.29,149.24,24.28]
[1746065795320,31.19009694,149.3,149.24,24.28]
[1746065795524,6.6989,149.27,149.24,30.98]
[1746065795815,6.6989,149.27,149.24,6.7]
[1746065797012,6.6986,149.28,149.24,6.7]
[1746065797319,31.17009694,149.3,149.21,30.0107]
[1746065797714,31.17009694,149.3,149.25,6.6997]
[1746065797918,31.17009694,149.3,149.21,30.0107]
[1746065798113,6.6981,149.29,149.21,30.0107]
[1746065798313,24.1,149.3,149.21,30.0107]
[1746065798616,30.7977,149.3,149.21,30.0107]
[1746065799520,30.7977,149.3,149.26,6.6989]
[1746065800221,30.7977,149.3,149.27,6.6988]
[1746065800422,24.12,149.33,149.25,24.12]
[1746065800922,24.12,149.33,149.26,2.0617]
[1746065801324,6.6968,149.32,149.28,6.6984]
[1746065801623,24.12,149.33,149.28,6.6984]
[1746065801918,6.6974,149.31,149.28,6.6984]
[1746065802322,24.12,149.33,149.27,6.6987]
[1746065802723,6.6977,149.3,149.27,6.6987]
[1746065803021,24.12,149.33,149.28,6.6984]
[1746065803319,6.6972,149.31,149.28,6.6984]
[1746065803718,6.6972,149.31,149.29,6.6979]
[1746065805427,6.6972,149.31,149.28,6.6982]
[1746065806326,6.6976,149.3,149.28,6.6982]
[1746065806627,24.12,149.33,149.26,2.0617]
[1746065806824,24.12,149.33,149.25,24.12]
[1746065807126,6.6978,149.3,149.27,6.6987]
[1746065809029,6.6973,149.31,149.28,6.6983]
[1746065811724,6.6976,149.3,149.28,6.6983]
[1746065812028,6.6976,149.3,149.27,6.6987]
[1746065812725,6.6976,149.3,149.28,6.6983]
[1746065812921,6.6972,149.31,149.28,6.6983]
[1746065813223,24.12,149.33,149.25,24.12]
[1746065813429,6.6967,149.32,149.25,24.12]
[1746065814129,6.6971,149.31,149.28,6.6981]
[1746065814927,6.6976,149.3,149.27,6.6987]
[1746065815428,6.6976,149.3,149.28,6.6984]
[1746065815832,6.6973,149.31,149.28,6.6984]
[1746065820936,7.07009694,149.32,149.25,24.12]
[1746065821439,6.698,149.3,149.27,6.6988]
[1746065821737,7.07009694,149.32,149.27,6.6988]
[1746065822137,6.698,149.29,149.26,6.6992]
[1746065825136,7.07009694,149.32,149.25,24.12]
[1746065825436,24.12,149.33,149.25,24.12]
[1746065825838,6.6973,149.31,149.28,6.6981]
[1746065826041,24.12,149.33,149.25,24.12]
[1746065826640,6.6972,149.31,149.28,6.6981]
[1746065828939,24.12,149.33,149.25,24.12]
[1746065829142,24.12,149.33,149.26,3.9634]
[1746065829547,6.6954,149.35,149.32,6.6966]
[1746065830337,30.795,149.36,149.27,2.0294]
[1746065831038,24.1,149.36,149.27,2.0294]
[1746065832651,6.6965,149.33,149.29,6.6977]
[1746065833353,24.1,149.36,149.28,6.6983]
[1746065833548,24.1,149.36,149.27,2.0294]
[1746065833966,24.1,149.36,149.28,6.6981]
[1746065834156,7.07009694,149.35,149.27,2.0294]
[1746065834454,9.15449694,149.35,149.27,2.0294]
[1746065835253,6.6974,149.31,149.28,6.6984]
[1746065836153,6.6968,149.32,149.28,6.6984]
[1746065837359,6.6964,149.33,149.29,6.6978]
[1746065838658,6.6964,149.33,149.3,6.6975]
[1746065838857,6.6959,149.34,149.27,2.0294]
[1746065839559,6.6959,149.34,149.31,6.697]
[1746065839854,6.6955,149.35,149.27,2.0294]
[1746065840059,6.6955,149.35,149.31,6.6967]
[1746065840856,30.795,149.36,149.27,2.0294]
[1746065841254,30.795,149.36,149.32,6.6964]
[1746065842460,6.6955,149.35,149.32,6.6964]
[1746065843762,24.1,149.36,149.27,2.0294]
[1746065843956,26.0906,149.39,149.28,24.1]
[1746065844261,6.6946,149.37,149.28,24.1]
[1746065844463,26.0906,149.39,149.29,7.07009694]
[1746065844855,32.7844,149.39,149.35,6.695]
[1746065845656,6.6941,149.38,149.35,6.695]
[1746065846957,24.1,149.42,149.36,6.6947]
[1746065847357,6.6936,149.39,149.33,4.0627]
[1746065848266,24.1,149.42,149.33,5.9896]
[1746065848762,6.6926,149.41,149.37,6.6941]
[1746065849864,6.6931,149.4,149.36,30.7747]
[1746065850067,24.1,149.42,149.36,30.7747]
[1746065850564,6.6933,149.4,149.36,30.7747]
[1746065853268,6.6935,149.39,149.36,30.7747]
[1746065853973,6.6933,149.4,149.36,30.7747]
[1746065854467,6.6939,149.39,149.36,24.08]
[1746065854671,24.1,149.42,149.36,24.08]
[1746065856168,6.6939,149.39,149.36,24.08]
[1746065856468,6.6939,149.39,149.35,6.6953]
[1746065858871,6.6939,149.39,149.36,6.6948]
[1746065859566,24.1,149.42,149.37,6.6941]
[1746065860070,6.6928,149.41,149.37,6.6941]
[1746065860371,24.1,149.42,149.37,6.6941]
[1746065860770,6.6933,149.4,149.37,6.6941]
[1746065860971,6.6933,149.4,149.36,6.6947]
[1746065861174,6.6933,149.4,149.33,30.0696]
[1746065862273,6.6933,149.4,149.36,6.6945]
[1746065862475,6.6935,149.39,149.36,6.6945]
[1746065862677,24.1,149.42,149.36,6.6945]
[1746065863180,24.1,149.42,149.37,6.6943]
[1746065863476,24.1,149.42,149.33,26.0927]
[1746065863976,30.7923,149.42,149.39,6.6932]
[1746065864181,1.9072,149.43,149.37,24.08]
[1746065864570,6.692,149.43,149.39,6.6932]
[1746065865281,6.691,149.45,149.38,7.07009694]
[1746065865579,1.9558,149.47,149.38,9.15459694]
[1746065865780,1.9558,149.47,149.38,2.0845]
[1746065866170,6.6915,149.44,149.4,6.6927]
[1746065867071,6.6918,149.43,149.4,6.6927]
[1746065867278,9.02589694,149.47,149.39,6.6935]
[1746065867677,9.02589694,149.47,149.4,6.693]
[1746065867877,9.02589694,149.47,149.38,2.0845]
[1746065868577,6.692,149.43,149.4,6.6931]
[1746065868777,9.02589694,149.47,149.38,2.0845]
[1746065868977,9.02589694,149.47,149.37,24.08]
[1746065869178,6.6928,149.41,149.38,6.6938]
[1746065869390,1.9558,149.47,149.37,24.08]
[1746065869570,8.6459,149.47,149.42,6.6917]
[1746065869774,6.6901,149.47,149.41,24.08]
[1746065870177,6.6896,149.48,149.44,6.691]
[1746065870372,26.0507,149.5,149.41,24.08]
[1746065870773,6.6893,149.49,149.41,24.08]
[1746065870973,26.0507,149.5,149.41,24.08]
[1746065871170,7.07009694,149.48,149.41,24.08]
[1746065871374,6.6907,149.46,149.41,24.08]
[1746065872176,6.6909,149.45,149.41,30.7723]
[1746065872879,6.6904,149.46,149.41,30.7723]
[1746065874085,6.6904,149.46,149.41,24.08]
[1746065874785,6.6904,149.46,149.41,30.7725]
[1746065875686,6.6904,149.46,149.42,6.6921]
[1746065875986,6.6901,149.47,149.42,6.6921]
[1746065876284,7.07009694,149.48,149.42,6.6921]
[1746065876486,6.6907,149.46,149.42,6.6921]
[1746065877989,6.6909,149.45,149.42,6.6921]
[1746065878288,7.07009694,149.48,149.42,6.6921]
[1746065878482,6.6905,149.46,149.42,6.6921]
[1746065878988,6.6905,149.46,149.43,6.6917]
[1746065879391,6.6905,149.46,149.41,24.08]
[1746065879688,6.6905,149.46,149.42,6.6919]
[1746065880189,6.6908,149.45,149.42,6.6919]
[1746065880488,7.07009694,149.48,149.42,6.6919]
[1746065880685,6.6908,149.46,149.42,6.6919]
[1746065881387,6.6908,149.46,149.43,6.6914]
[1746065881791,6.6908,149.46,149.41,24.08]
[1746065881990,6.6909,149.45,149.42,6.6919]
[1746065883799,6.6913,149.44,149.41,30.7724]
[1746065884895,6.691,149.45,149.42,6.6921]
[1746065885095,7.07009694,149.48,149.41,24.08]
[1746065885394,6.6908,149.46,149.43,6.6917]
[1746065885897,7.07009694,149.48,149.41,24.08]
[1746065886199,6.6908,149.46,149.42,6.6919]
[1746065887102,6.6909,149.45,149.42,6.6919]
[1746065887901,7.07009694,149.48,149.41,24.08]
[1746065888100,1.9285,149.47,149.38,26.434]
[1746065888303,3.986,149.47,149.38,26.434]
[1746065888497,24.34,149.46,149.38,26.434]
[1746065888905,7.07009694,149.45,149.38,24.34]
[1746065889109,9.08289694,149.45,149.38,24.34]
[1746065889298,9.08289694,149.45,149.37,6.6942]
[1746065890407,6.693,149.41,149.35,24.34]
[1746065890909,6.693,149.41,149.38,6.6939]
[1746065892412,6.6931,149.4,149.37,6.6942]
[1746065892911,6.6931,149.4,149.38,6.6939]
[1746065893412,6.6928,149.41,149.38,6.6939]
[1746065894214,6.6924,149.42,149.39,6.6934]
[1746065894407,9.08289694,149.45,149.39,6.6934]
[1746065894609,9.08289694,149.45,149.35,26.2425]
[1746065895714,24.34,149.47,149.35,26.2425]
[1746065897015,6.6915,149.44,149.41,6.6926]
[1746065900609,24.34,149.47,149.42,6.692]
[1746065900815,6.691,149.45,149.39,24.34]
[1746065901715,6.691,149.45,149.42,6.6919]
[1746065902620,6.691,149.45,149.39,24.34]
[1746065902621,24.34,149.47,149.39,24.34]
[1746065902812,24.34,149.47,149.4,3.9759]
[1746065903014,5.8301,149.5,149.4,3.9759]
[1746065903212,30.1701,149.5,149.4,3.9759]
[1746065903719,6.6902,149.47,149.43,6.6917]
[1746065903921,6.6902,149.47,149.4,3.9759]
[1746065904222,6.6902,149.47,149.43,6.6913]
[1746065904818,6.6905,149.46,149.43,6.6913]
[1746065905020,30.1701,149.5,149.4,3.9759]
[1746065905321,7.07009694,149.48,149.4,3.9759]
[1746065905516,7.07009694,149.48,149.41,6.6924]
[1746065906419,7.07009694,149.48,149.4,6.6928]
[1746065906620,6.6919,149.43,149.39,24.34]
[1746065907113,6.6919,149.43,149.4,6.693]
[1746065907622,6.6919,149.43,149.41,6.6926]
[1746065909023,6.6914,149.44,149.41,6.6926]
[1746065909431,24.34,149.46,149.41,6.6926]
[1746065909624,24.34,149.46,149.4,6.6929]
[1746065909823,7.07009694,149.45,149.39,24.34]
[1746065910028,11.05979694,149.45,149.39,24.34]
[1746065910322,6.6928,149.41,149.38,6.6937]
[1746065910518,13.05709694,149.45,149.36,26.1674]
[1746065910723,13.05709694,149.45,149.37,6.6942]
[1746065911125,13.05709694,149.45,149.38,6.6939]
[1746065911525,6.6926,149.42,149.38,6.6939]
[1746065913228,6.6928,149.41,149.38,6.6939]
[1746065915130,6.6923,149.42,149.39,6.6935]
[1746065915330,13.05709694,149.45,149.36,2.0274]
[1746065915724,6.6929,149.41,149.38,6.6937]
[1746065917231,6.6929,149.41,149.37,6.6942]
[1746065917530,6.6929,149.41,149.36,2.0274]
[1746065918236,6.6929,149.41,149.38,6.6937]
[1746065921436,6.6931,149.4,149.37,6.6942]
[1746065921734,13.05709694,149.45,149.37,6.6942]
[1746065922036,6.6928,149.41,149.38,6.6939]
[1746065922842,13.05709694,149.45,149.36,2.0274]
[1746065925038,6.6922,149.42,149.39,6.6933]
[1746065929242,6.6927,149.41,149.39,6.6933]
[1746065929540,6.6927,149.41,149.38,6.6937]
[1746065930642,24.14,149.42,149.36,8.7221]
[1746065930846,24.14,149.42,149.36,6.6947]
[1746065931141,24.14,149.42,149.32,31.21009694]
[1746065931644,6.6946,149.37,149.34,6.6956]
[1746065931942,31.21009694,149.42,149.32,24.14]
[1746065932242,31.21009694,149.42,149.33,6.6957]
[1746065932740,6.6948,149.37,149.33,6.6957]
[1746065934343,6.6948,149.37,149.34,6.6957]
[1746065934747,6.6949,149.36,149.33,6.696]
[1746065936546,6.6946,149.37,149.34,6.6957]
[1746065937358,7.07009694,149.42,149.35,6.6951]
[1746065937542,24.14,149.44,149.32,7.07009694]
[1746065937746,31.21009694,149.44,149.32,7.07009694]
[1746065938045,6.6924,149.42,149.36,6.6944]
[1746065938244,6.6924,149.42,149.35,24.14]
[1746065938443,6.6924,149.42,149.37,6.6941]
[1746065938642,6.6926,149.41,149.37,6.6941]
[1746065939047,31.21009694,149.44,149.37,6.6941]
[1746065939249,6.6923,149.42,149.38,6.6938]
[1746065940144,6.693,149.41,149.37,6.6942]
[1746065940343,31.21009694,149.44,149.35,24.14]
[1746065940846,24.14,149.44,149.35,31.21009694]
[1746065941045,3.9897,149.45,149.36,2.0925]
[1746065941245,1.914,149.45,149.36,5.9798]
[1746065941553,24.08,149.47,149.36,5.9798]
[1746065941740,24.08,149.47,149.38,7.07009694]
[1746065941945,24.08,149.47,149.39,24.08]
[1746065942251,30.7702,149.47,149.43,6.6914]
[1746065942444,30.7702,149.47,149.39,24.08]
[1746065943553,30.7702,149.47,149.43,6.6914]
[1746065943750,30.7702,149.47,149.39,24.08]
[1746065944056,1.9944,149.49,149.39,24.08]
[1746065944552,8.6838,149.49,149.45,6.6906]
[1746065944955,1.9944,149.49,149.45,6.6906]
[1746065945258,1.9944,149.49,149.39,24.08]
[1746065945652,8.6837,149.49,149.45,6.6905]
[1746065945857,1.9944,149.49,149.39,24.08]
[1746065946356,8.6835,149.49,149.45,6.6904]
[1746065946652,1.9944,149.49,149.45,6.6904]
[1746065946957,6.6898,149.48,149.45,6.6904]
[1746065947160,1.9944,149.49,149.39,24.08]
[1746065947464,6.6901,149.47,149.39,24.08]
[1746065947658,1.9944,149.49,149.44,6.6908]
[1746065947857,1.9944,149.49,149.39,24.08]
[1746065948461,8.6836,149.49,149.39,24.08]
[1746065949363,24.08,149.5,149.47,6.6895]
[1746065949963,24.08,149.53,149.48,6.6894]
[1746065951066,24.08,149.53,149.44,24.08]
[1746065951753,13.75719694,149.54,149.44,31.15009694]
[1746065952259,33.24499694,149.56,149.44,31.15009694]
[1746065952573,33.24499694,149.56,149.5,6.6883]
[1746065952873,6.6871,149.54,149.49,24.08]
[1746065953063,33.24499694,149.56,149.44,7.07009694]
[1746065953266,6.6874,149.53,149.45,24.08]
[1746065953466,33.24499694,149.56,149.45,24.08]
[1746065953673,33.24499694,149.56,149.51,6.6878]
[1746065953869,6.6866,149.55,149.51,6.6878]
[1746065954172,6.6866,149.55,149.52,6.6876]
[1746065955172,6.6866,149.55,149.49,24.08]
[1746065955173,6.6868,149.54,149.51,6.688]
[1746065955866,6.6872,149.53,149.5,6.6884]
[1746065956368,33.24499694,149.56,149.49,24.08]
[1746065956672,6.6874,149.53,149.5,6.6885]
[1746065960074,33.24499694,149.56,149.49,30.7689]
[1746065960978,6.6877,149.53,149.49,30.7689]
[1746065962279,6.6877,149.52,149.49,30.7689]
[1746065966088,33.24499694,149.56,149.5,6.6886]
[1746065966089,6.6876,149.53,149.5,6.6886]
[1746065966380,6.6876,149.53,149.49,24.08]
[1746065966574,33.24499694,149.56,149.49,24.08]
[1746065967185,6.687,149.54,149.51,6.6878]
[1746065967383,33.24499694,149.56,149.49,24.08]
[1746065967883,6.6868,149.54,149.51,6.6881]
[1746065969176,33.24499694,149.56,149.49,24.08]
[1746065969687,6.687,149.54,149.51,6.688]
[1746065970283,6.6865,149.55,149.52,6.6877]
[1746065972674,6.6869,149.54,149.51,6.688]
[1746065973384,6.6865,149.55,149.49,24.08]
[1746065973577,6.6865,149.55,149.5,1.906]
[1746065973989,6.6865,149.55,149.52,6.6875]
[1746065976382,7.07009694,149.56,149.52,6.6875]
[1746065976580,7.07009694,149.56,149.53,6.6872]
[1746065976784,6.6863,149.56,149.53,6.6872]
[1746065977083,31.15009694,149.59,149.5,1.906]
[1746065977386,6.708,149.61,149.52,7.07009694]
[1746065977583,6.708,149.61,149.53,28.0143]
[1746065977788,6.708,149.61,149.54,24.08]
[1746065978188,6.708,149.62,149.54,30.7665]
[1746065978390,6.708,149.62,149.54,24.08]
[1746065979096,6.6853,149.58,149.54,24.08]
[1746065979282,6.708,149.62,149.54,24.08]
[1746065980281,6.6857,149.57,149.54,24.08]
[1746065980793,7.07009694,149.6,149.54,24.08]
[1746065981287,24.06,149.59,149.5,366.5944]
[1746065981485,24.06,149.59,149.51,24.06]
[1746065982591,6.6872,149.54,149.51,24.06]
[1746065982893,24.06,149.59,149.51,24.06]
[1746065983092,6.6874,149.53,149.51,24.06]
[1746065983393,7.07009694,149.57,149.51,24.06]
[1746065983792,6.6877,149.52,149.51,24.06]
[1746065989500,6.6877,149.52,149.5,1.906]
[1746066000203,7.07009694,149.57,149.48,4.0735]
[1746066000402,7.07009694,149.57,149.42,358.0]
[1746066000403,7.07009694,149.54,149.46,26.006]
[1746066000701,6.6884,149.51,149.46,26.006]
[1746066002006,6.6884,149.51,149.48,6.6892]
[1746066002403,6.6884,149.51,149.46,26.006]
[1746066003002,6.6884,149.51,149.47,6.6895]
[1746066004307,6.6886,149.5,149.47,6.6895]
[1746066005005,24.06,149.58,149.46,26.006]
[1746066005909,6.6871,149.54,149.51,6.6879]
[1746066006610,6.6865,149.55,149.52,6.6876]
[1746066006903,24.06,149.58,149.5,24.06]
[1746066007111,6.6862,149.56,149.52,6.6872]
[1746066007607,24.06,149.58,149.52,6.6872]
[1746066008000,24.06,149.58,149.51,6.6879]
[1746066008209,6.6866,149.55,149.51,6.6879]
[1746066008408,6.6866,149.55,149.5,24.06]
[1746066009210,6.6866,149.55,149.52,6.6876]
[1746066010803,24.06,149.58,149.5,24.06]
[1746066011508,6.6871,149.54,149.5,30.7481]
[1746066012103,6.6871,149.54,149.5,24.06]
[1746066012709,6.6871,149.54,149.51,6.6878]
[1746066013009,6.6866,149.55,149.51,6.6878]
[1746066013203,24.06,149.58,149.51,6.6878]
[1746066015116,6.6868,149.55,149.51,6.6878]
[1746066015512,24.06,149.58,149.51,6.6878]
[1746066016012,24.06,149.58,149.5,30.7484]
[1746066017113,6.6873,149.53,149.5,30.7484]
[1746066017311,7.07009694,149.57,149.5,24.06]
[1746066017613,7.07009694,149.57,149.48,24.06]
[1746066017918,6.6879,149.52,149.49,6.689]
[1746066018514,7.07009694,149.57,149.49,6.689]
[1746066019817,7.07009694,149.57,149.48,30.7493]
[1746066020014,1.9536,149.56,149.48,30.7493]
[1746066020916,1.9536,149.56,149.49,6.689]
[1746066021518,6.6879,149.52,149.49,6.689]
[1746066021817,6.6879,149.52,149.49,6.6889]
[1746066022012,6.6879,149.52,149.48,24.06]
[1746066022219,6.6874,149.53,149.5,6.6883]
[1746066023317,1.9536,149.56,149.5,6.6883]
[1746066024320,6.6877,149.52,149.5,6.6883]
[1746066024519,6.6877,149.52,149.49,6.6889]
[1746066024716,1.9536,149.56,149.48,24.06]
[1746066025732,6.6879,149.52,149.49,6.6888]
[1746066025926,1.9536,149.56,149.48,24.06]
[1746066026531,6.6874,149.53,149.5,6.6883]
[1746066027028,1.9536,149.56,149.52,6.6876]
[1746066027229,24.06,149.58,149.52,6.6876]
[1746066027631,24.06,149.58,149.51,6.6879]
[1746066028034,7.07009694,149.57,149.48,24.06]
[1746066028330,6.6874,149.53,149.5,6.6883]
[1746066030426,6.6874,149.53,149.51,6.688]
[1746066031536,6.6874,149.53,149.5,6.6884]
[1746066033034,6.6874,149.53,149.51,6.688]
[1746066034931,24.06,149.54,149.43,7.07009694]
[1746066035124,24.06,149.54,149.45,24.06]
[1746066035535,6.6875,149.53,149.5,6.6883]
[1746066036336,30.7469,149.54,149.51,6.6879]
[1746066036535,1.9551,149.56,149.49,24.06]
[1746066037034,6.6877,149.52,149.49,24.06]
[1746066037737,6.6877,149.52,149.49,30.7487]
[1746066038033,6.6874,149.53,149.49,24.06]
[1746066038234,2.106,149.55,149.49,24.06]
[1746066038627,6.6873,149.53,149.49,24.06]
[1746066038830,2.106,149.55,149.49,24.06]
[1746066039035,2.106,149.55,149.51,6.6881]
[1746066039935,2.106,149.55,149.49,24.06]
[1746066040128,6.6879,149.52,149.49,24.06]
[1746066040631,6.6879,149.52,149.47,24.06]
[1746066040836,6.6879,149.52,149.49,6.6888]
[1746066041036,2.106,149.55,149.47,24.06]
[1746066041237,4.0924,149.55,149.47,24.06]
[1746066041435,6.6891,149.49,149.43,7.07009694]
[1746066041734,6.6891,149.49,149.44,24.06]
[1746066043137,6.6891,149.49,149.46,6.6901]
[1746066045142,6.6891,149.49,149.47,6.6899]
[1746066045338,31.13009694,149.53,149.44,24.06]
[1746066045651,24.06,149.53,149.44,24.06]
[1746066045940,6.6873,149.53,149.5,6.6884]
[1746066046528,6.6871,149.54,149.51,6.6881]
[1746066048141,6.6873,149.53,149.5,6.6884]
[1746066048441,2.106,149.55,149.48,24.06]
[1746066048647,6.687,149.54,149.51,6.6881]
[1746066048943,2.106,149.55,149.48,24.06]
[1746066049443,6.6868,149.54,149.48,24.06]
[1746066050544,6.6868,149.54,149.52,6.6876]
[1746066051738,26.0151,149.56,149.53,6.6871]
[1746066052042,26.0151,149.56,149.48,24.06]
[1746066052443,6.6869,149.54,149.52,6.6876]
[1746066053144,6.6869,149.54,149.51,6.688]